[Event "Live Chess"]
[Site "Chess.com"]
[Date "2024.06.01"]
[Round "-"]
[White "WorcesterYork"]
[Black "JohanKjeldahl"]
[Result "1-0"]
[WhiteElo "2514"]
[BlackElo "1828"]
[TimeControl "300"]
[EndTime "12:21:19 PDT"]
[Termination "WorcesterYork won by resignation"]

1. d4 {[%clk 0:04:57.5]} 1... Nf6 {[%clk 0:04:57.8]} 2. Bg5 {[%clk 0:04:55.3]}
2... e6 {[%clk 0:04:55.6]} 3. Nd2 {[%clk 0:04:53.6]} 3... c5 {[%clk 0:04:52.7]}
4. e3 {[%clk 0:04:52.3]} 4... d5 {[%clk 0:04:50.4]} 5. c3 {[%clk 0:04:51.3]}
5... Nbd7 {[%clk 0:04:45.8]} 6. Ngf3 {[%clk 0:04:50.3]} 6... Be7 {[%clk
0:04:44.2]} 7. Bd3 {[%clk 0:04:49.4]} 7... h6 {[%clk 0:04:42.6]} 8. Bxf6 {[%clk
0:04:48.8]} 8... Nxf6 {[%clk 0:04:40.3]} 9. O-O {[%clk 0:04:48.7]} 9... O-O
{[%clk 0:04:38.8]} 10. Ne5 {[%clk 0:04:47.4]} 10... b6 {[%clk 0:04:34.9]} 11. f4
{[%clk 0:04:47]} 11... Bb7 {[%clk 0:04:32.3]} 12. Qf3 {[%clk 0:04:46.2]} 12...
Rc8 {[%clk 0:04:21.4]} 13. Rae1 {[%clk 0:04:42.7]} 13... a6 {[%clk 0:04:09.7]}
14. g4 {[%clk 0:04:41.8]} 14... Nd7 {[%clk 0:04:04.9]} 15. Nxd7 {[%clk 0:04:39]}
15... Qxd7 {[%clk 0:04:03.2]} 16. Qg3 {[%clk 0:04:38.6]} 16... f5 {[%clk
0:03:52.3]} 17. gxf5 {[%clk 0:04:35.2]} 17... exf5 {[%clk 0:03:51.2]} 18. Nf3
{[%clk 0:04:34.9]} 18... Bf6 {[%clk 0:03:43.2]} 19. Ne5 {[%clk 0:04:34.8]} 19...
Bxe5 {[%clk 0:03:35.4]} 20. fxe5 {[%clk 0:04:34.7]} 20... Rce8 {[%clk
0:03:22.4]} 21. Rf4 {[%clk 0:04:33.1]} 21... Bc8 {[%clk 0:03:17.4]} 22. Ref1
{[%clk 0:04:32.4]} 22... Qc6 {[%clk 0:02:45.2]} 23. Bxf5 {[%clk 0:04:30.7]}
23... Bxf5 {[%clk 0:02:40.8]} 24. Rxf5 {[%clk 0:04:30.6]} 24... Rxf5 {[%clk
0:02:38.4]} 25. Rxf5 {[%clk 0:04:30.5]} 25... cxd4 {[%clk 0:02:36.2]} 26. exd4
{[%clk 0:04:29]} 26... Qc4 {[%clk 0:02:30.5]} 27. a3 {[%clk 0:04:22.7]} 27...
Qe2 {[%clk 0:02:23.7]} 28. Rf2 {[%clk 0:04:21.8]} 28... Qe1+ {[%clk 0:02:17.9]}
29. Kg2 {[%clk 0:04:21.3]} 29... Qe4+ {[%clk 0:02:15.7]} 30. Qf3 {[%clk
0:04:19.6]} 30... Qg6+ {[%clk 0:02:13.8]} 31. Kh1 {[%clk 0:04:19]} 31... Qb1+
{[%clk 0:02:11.6]} 32. Rf1 {[%clk 0:04:17.5]} 32... Qg6 {[%clk 0:02:05.1]} 33.
Qxd5+ {[%clk 0:04:16.4]} 33... Kh7 {[%clk 0:02:02.7]} 34. Qf3 {[%clk 0:04:15.3]}
1-0

[Event "Live Chess"]
[Site "Chess.com"]
[Date "2024.06.01"]
[Round "-"]
[White "Bradfield133"]
[Black "A3ndrey9"]
[Result "1-0"]
[WhiteElo "1926"]
[BlackElo "1293"]
[TimeControl "300"]
[EndTime "12:21:36 PDT"]
[Termination "Bradfield133 won on time"]

1. c4 {[%clk 0:04:57.8]} 1... c6 {[%clk 0:04:59.9]} 2. Qa4 {[%clk 0:04:55.4]}
2... d5 {[%clk 0:04:59]} 3. cxd5 {[%clk 0:04:54.3]} 3... Qxd5 {[%clk 0:04:58.2]}
4. Nf3 {[%clk 0:04:53.2]} 4... Nf6 {[%clk 0:04:52.5]} 5. g3 {[%clk 0:04:52.1]}
5... Bf5 {[%clk 0:04:48.4]} 6. Nc3 {[%clk 0:04:38.9]} 6... Qd8 {[%clk
0:04:46.2]} 7. Bg2 {[%clk 0:04:33.3]} 7... e6 {[%clk 0:04:36.7]} 8. O-O {[%clk
0:04:30.1]} 8... Be7 {[%clk 0:04:35.8]} 9. d3 {[%clk 0:04:28.4]} 9... O-O {[%clk
0:04:34.7]} 10. Re1 {[%clk 0:04:21.3]} 10... b5 {[%clk 0:04:28.4]} 11. Qc2
{[%clk 0:04:17.8]} 11... a5 {[%clk 0:04:25.4]} 12. e4 {[%clk 0:04:13.8]} 12...
Bg4 {[%clk 0:04:22.7]} 13. Ne5 {[%clk 0:04:03.1]} 13... Nbd7 {[%clk 0:04:14.9]}
14. Nxc6 {[%clk 0:03:59]} 14... Qe8 {[%clk 0:04:10]} 15. Nxe7+ {[%clk
0:03:50.3]} 15... Qxe7 {[%clk 0:04:08.9]} 16. Nxb5 {[%clk 0:03:48.7]} 16... Qb4
{[%clk 0:03:57.1]} 17. Nc3 {[%clk 0:03:27.1]} 17... Ne5 {[%clk 0:03:54.9]} 18.
a3 {[%clk 0:03:21]} 18... Qd4 {[%clk 0:03:49.8]} 19. Re3 {[%clk 0:02:54.4]}
19... Rfc8 {[%clk 0:03:30.7]} 20. h3 {[%clk 0:02:25.7]} 20... Bh5 {[%clk
0:03:23.9]} 21. f4 {[%clk 0:02:16.3]} 21... Ned7 {[%clk 0:02:54.3]} 22. Qf2
{[%clk 0:02:05.8]} 22... Nc5 {[%clk 0:02:37.8]} 23. Ne2 {[%clk 0:01:39.2]} 23...
Bxe2 {[%clk 0:02:32.4]} 24. Qxe2 {[%clk 0:01:38.1]} 24... Nb3 {[%clk 0:02:26.2]}
25. Bd2 {[%clk 0:01:12.6]} 25... Qxb2 {[%clk 0:02:10.8]} 26. Rd1 {[%clk
0:01:01.4]} 26... Nxd2 {[%clk 0:02:08.6]} 27. Rxd2 {[%clk 0:00:59.1]} 27... Rc1+
{[%clk 0:02:03.6]} 28. Kf2 {[%clk 0:00:57.5]} 28... Qxa3 {[%clk 0:01:53.2]} 29.
d4 {[%clk 0:00:54]} 29... Rc3 {[%clk 0:01:42.9]} 30. d5 {[%clk 0:00:49.6]} 30...
Rxe3 {[%clk 0:01:40.4]} 31. Qxe3 {[%clk 0:00:48.4]} 31... Qxe3+ {[%clk
0:01:32.5]} 32. Kxe3 {[%clk 0:00:47.2]} 32... exd5 {[%clk 0:01:31.6]} 33. exd5
{[%clk 0:00:45.3]} 33... a4 {[%clk 0:01:29.6]} 34. d6 {[%clk 0:00:43.4]} 34...
Re8+ {[%clk 0:01:20.8]} 35. Kd4 {[%clk 0:00:41.3]} 35... Rd8 {[%clk 0:01:19.9]}
36. Kc5 {[%clk 0:00:36.8]} 36... Kf8 {[%clk 0:01:05.5]} 37. Ra2 {[%clk
0:00:34.1]} 37... Ke8 {[%clk 0:01:01.3]} 38. Rxa4 {[%clk 0:00:31.8]} 38... Nd7+
{[%clk 0:01:00.4]} 39. Kc6 {[%clk 0:00:26.8]} 39... f5 {[%clk 0:00:55.9]} 40.
Kc7 {[%clk 0:00:20.4]} 40... Nc5 {[%clk 0:00:46]} 41. Bc6+ {[%clk 0:00:18.3]}
41... Nd7 {[%clk 0:00:42.5]} 42. Ra1 {[%clk 0:00:12.3]} 42... Rb8 {[%clk
0:00:01.6]} 43. Bxd7+ {[%clk 0:00:08.1]} 1-0

[Event "Live Chess"]
[Site "Chess.com"]
[Date "2024.06.01"]
[Round "-"]
[White "jimwad"]
[Black "IanCalvert2"]
[Result "0-1"]
[WhiteElo "1237"]
[BlackElo "1547"]
[TimeControl "300"]
[EndTime "12:21:47 PDT"]
[Termination "IanCalvert2 won by resignation"]

1. c4 {[%clk 0:04:55.2]} 1... c6 {[%clk 0:04:53.4]} 2. g3 {[%clk 0:04:53.7]}
2... d5 {[%clk 0:04:51.5]} 3. b3 {[%clk 0:04:51.2]} 3... Nf6 {[%clk 0:04:49.3]}
4. Bg2 {[%clk 0:04:48.3]} 4... g6 {[%clk 0:04:48.1]} 5. Bb2 {[%clk 0:04:45.6]}
5... Bg7 {[%clk 0:04:44.7]} 6. Nc3 {[%clk 0:04:44.5]} 6... O-O {[%clk
0:04:41.6]} 7. e3 {[%clk 0:04:43.3]} 7... e6 {[%clk 0:04:25.4]} 8. d4 {[%clk
0:04:41.7]} 8... Nbd7 {[%clk 0:04:21.9]} 9. Nge2 {[%clk 0:04:40]} 9... b6 {[%clk
0:04:18.7]} 10. O-O {[%clk 0:04:35.9]} 10... Bb7 {[%clk 0:04:17.4]} 11. Rc1
{[%clk 0:04:30.5]} 11... Rc8 {[%clk 0:04:14]} 12. cxd5 {[%clk 0:04:18.7]} 12...
cxd5 {[%clk 0:03:58.6]} 13. Qd2 {[%clk 0:03:59.7]} 13... Ba6 {[%clk 0:03:36.3]}
14. a4 {[%clk 0:03:53.7]} 14... Rc7 {[%clk 0:03:18.2]} 15. b4 {[%clk 0:03:45.5]}
15... Bxe2 {[%clk 0:03:05.5]} 16. Qxe2 {[%clk 0:03:43.6]} 16... Qb8 {[%clk
0:03:03.2]} 17. Nb5 {[%clk 0:03:36.2]} 17... Rxc1 {[%clk 0:02:57]} 18. Rxc1
{[%clk 0:03:34.7]} 18... a6 {[%clk 0:02:48.6]} 19. Nc3 {[%clk 0:03:19.8]} 19...
Qb7 {[%clk 0:02:38.9]} 20. b5 {[%clk 0:03:07.8]} 20... a5 {[%clk 0:02:33.3]} 21.
Ba3 {[%clk 0:03:04.8]} 21... Rc8 {[%clk 0:02:29.1]} 22. Qd2 {[%clk 0:02:53.4]}
22... Bf8 {[%clk 0:02:23.2]} 23. Ne2 {[%clk 0:02:51.5]} 23... Bxa3 {[%clk
0:02:16.2]} 24. Rxc8+ {[%clk 0:02:40.9]} 24... Qxc8 {[%clk 0:02:13.7]} 25. Qc3
{[%clk 0:02:39.5]} 25... Qxc3 {[%clk 0:02:01.2]} 26. Nxc3 {[%clk 0:02:38.4]}
26... Bb4 {[%clk 0:01:49.9]} 27. Nb1 {[%clk 0:02:33.9]} 27... Ne4 {[%clk
0:01:46.2]} 28. Bxe4 {[%clk 0:02:31.8]} 28... dxe4 {[%clk 0:01:42.7]} 29. Kf1
{[%clk 0:02:29]} 29... f5 {[%clk 0:01:37.6]} 30. Ke2 {[%clk 0:02:27.5]} 30... e5
{[%clk 0:01:32.4]} 31. dxe5 {[%clk 0:02:14.8]} 31... Nxe5 {[%clk 0:01:29.8]} 32.
Kd1 {[%clk 0:02:14.1]} 32... Kf7 {[%clk 0:01:24.9]} 33. Nd2 {[%clk 0:02:05.3]}
33... Bxd2 {[%clk 0:01:21.8]} 34. Kxd2 {[%clk 0:02:04.4]} 34... Ke6 {[%clk
0:01:17.2]} 35. Kc3 {[%clk 0:02:00.7]} 35... Kd5 {[%clk 0:01:11.6]} 36. h3
{[%clk 0:01:57.6]} 36... Nd3 {[%clk 0:01:06.6]} 37. f4 {[%clk 0:01:52.1]} 37...
Nc5 {[%clk 0:00:58]} 38. g4 {[%clk 0:01:46.5]} 38... fxg4 {[%clk 0:00:55]} 39.
hxg4 {[%clk 0:01:45.3]} 39... h5 {[%clk 0:00:53.8]} 40. gxh5 {[%clk 0:01:38.6]}
40... gxh5 {[%clk 0:00:51.2]} 41. f5 {[%clk 0:01:37.8]} 41... h4 {[%clk
0:00:48.2]} 0-1

[Event "Live Chess"]
[Site "Chess.com"]
[Date "2024.06.01"]
[Round "-"]
[White "KwikPhoenix"]
[Black "matt1979"]
[Result "1-0"]
[WhiteElo "2452"]
[BlackElo "1384"]
[TimeControl "300"]
[EndTime "12:21:53 PDT"]
[Termination "KwikPhoenix won by resignation"]

1. b3 {[%clk 0:04:58.2]} 1... f5 {[%clk 0:04:57.6]} 2. Bb2 {[%clk 0:04:58.1]}
2... d6 {[%clk 0:04:55.7]} 3. g3 {[%clk 0:04:54.2]} 3... e5 {[%clk 0:04:54.5]}
4. Bg2 {[%clk 0:04:53.5]} 4... Nf6 {[%clk 0:04:53.5]} 5. c4 {[%clk 0:04:52]}
5... Be7 {[%clk 0:04:52.7]} 6. Nc3 {[%clk 0:04:51.5]} 6... O-O {[%clk
0:04:51.8]} 7. d4 {[%clk 0:04:48.8]} 7... e4 {[%clk 0:04:49.9]} 8. Qd2 {[%clk
0:04:47.7]} 8... c6 {[%clk 0:04:48.5]} 9. e3 {[%clk 0:04:47.3]} 9... d5 {[%clk
0:04:45.2]} 10. cxd5 {[%clk 0:04:45.5]} 10... cxd5 {[%clk 0:04:44.3]} 11. Nge2
{[%clk 0:04:45]} 11... a6 {[%clk 0:04:41.8]} 12. a3 {[%clk 0:04:41.8]} 12... Nc6
{[%clk 0:04:36.1]} 13. h4 {[%clk 0:04:38.3]} 13... Ng4 {[%clk 0:04:27.8]} 14.
Nf4 {[%clk 0:04:34]} 14... Nf6 {[%clk 0:04:09.6]} 15. h5 {[%clk 0:04:32.2]}
15... Qd6 {[%clk 0:03:51.3]} 16. b4 {[%clk 0:04:24]} 16... Be6 {[%clk
0:03:38.8]} 17. Na4 {[%clk 0:04:14.8]} 17... Bd8 {[%clk 0:03:21.6]} 18. Nc5
{[%clk 0:04:12.5]} 18... Bc8 {[%clk 0:03:01.3]} 19. Nb3 {[%clk 0:04:04.6]} 19...
a5 {[%clk 0:02:39]} 20. b5 {[%clk 0:04:02.5]} 20... Na7 {[%clk 0:02:29.5]} 21.
a4 {[%clk 0:04:01.3]} 21... b6 {[%clk 0:02:26]} 22. Ba3 {[%clk 0:03:59.6]} 22...
Qd7 {[%clk 0:02:19.3]} 23. Bxf8 {[%clk 0:03:58.4]} 23... Kxf8 {[%clk 0:02:18]}
24. Rc1 {[%clk 0:03:53.2]} 24... Nxb5 {[%clk 0:02:13.6]} 25. axb5 {[%clk
0:03:51.4]} 25... Qxb5 {[%clk 0:02:12.5]} 26. Qa2 {[%clk 0:03:50]} 26... Ba6
{[%clk 0:02:08.3]} 27. Bf1 {[%clk 0:03:46.9]} 27... Qb4+ {[%clk 0:02:04.3]} 28.
Nd2 {[%clk 0:03:44.3]} 28... Bxf1 {[%clk 0:01:58.4]} 29. Kxf1 {[%clk 0:03:44.2]}
29... Be7 {[%clk 0:01:52.6]} 30. Kg2 {[%clk 0:03:37]} 30... a4 {[%clk 0:01:36]}
31. h6 {[%clk 0:03:32.1]} 31... g6 {[%clk 0:01:34.3]} 32. Ne6+ {[%clk
0:03:30.9]} 32... Kf7 {[%clk 0:01:31.7]} 33. Ng5+ {[%clk 0:03:29.7]} 33... Ke8
{[%clk 0:01:25.4]} 34. Rc7 {[%clk 0:03:26.4]} 34... Ng4 {[%clk 0:01:17.5]} 35.
Ne6 {[%clk 0:03:20.3]} 35... a3 {[%clk 0:01:06.3]} 36. Rhc1 {[%clk 0:03:17.6]}
36... Qb2 {[%clk 0:01:04.1]} 37. Qxb2 {[%clk 0:03:15.2]} 37... axb2 {[%clk
0:01:01.9]} 38. Rb1 {[%clk 0:03:15]} 38... Ba3 {[%clk 0:00:52.5]} 39. Rxh7
{[%clk 0:03:11.3]} 39... Rc8 {[%clk 0:00:47.1]} 40. Nc7+ {[%clk 0:03:06]} 40...
Kd8 {[%clk 0:00:43.9]} 41. Nxd5 {[%clk 0:03:02.8]} 41... Rc1 {[%clk 0:00:40.5]}
42. Nxb6 {[%clk 0:02:58.8]} 42... Ke8 {[%clk 0:00:33]} 43. Nbc4 {[%clk
0:02:57.5]} 43... Rxb1 {[%clk 0:00:28.8]} 44. Nxb1 {[%clk 0:02:57.4]} 44... Bb4
{[%clk 0:00:26.9]} 45. Nxb2 {[%clk 0:02:56.7]} 1-0

[Event "Live Chess"]
[Site "Chess.com"]
[Date "2024.06.01"]
[Round "-"]
[White "booktrunk"]
[Black "Demyan7777"]
[Result "0-1"]
[WhiteElo "1370"]
[BlackElo "1845"]
[TimeControl "300"]
[EndTime "12:22:03 PDT"]
[Termination "Demyan7777 won by resignation"]

1. d4 {[%clk 0:04:53.3]} 1... d5 {[%clk 0:04:53.9]} 2. Nc3 {[%clk 0:04:40.5]}
2... Nf6 {[%clk 0:04:52.5]} 3. Bf4 {[%clk 0:04:40.3]} 3... e6 {[%clk 0:04:51.3]}
4. Nb5 {[%clk 0:04:34.7]} 4... Bd6 {[%clk 0:04:47.2]} 5. Nxd6+ {[%clk
0:04:31.3]} 5... cxd6 {[%clk 0:04:46.6]} 6. e3 {[%clk 0:04:27.8]} 6... Nc6
{[%clk 0:04:45.7]} 7. Nf3 {[%clk 0:04:21.5]} 7... O-O {[%clk 0:04:43.1]} 8. Bb5
{[%clk 0:04:16.8]} 8... Qa5+ {[%clk 0:04:38.6]} 9. c3 {[%clk 0:03:50.7]} 9...
Qxb5 {[%clk 0:04:37.1]} 10. a4 {[%clk 0:03:49.9]} 10... Qxb2 {[%clk 0:04:32.2]}
11. Rb1 {[%clk 0:03:24.5]} 0-1

[Event "Live Chess"]
[Site "Chess.com"]
[Date "2024.06.01"]
[Round "-"]
[White "nffc11"]
[Black "ProfPoisson"]
[Result "1-0"]
[WhiteElo "2001"]
[BlackElo "1278"]
[TimeControl "300"]
[EndTime "12:22:07 PDT"]
[Termination "nffc11 won by checkmate"]

1. d4 {[%clk 0:04:57.3]} 1... e6 {[%clk 0:04:57.5]} 2. Nf3 {[%clk 0:04:56.6]}
2... f5 {[%clk 0:04:56.2]} 3. g3 {[%clk 0:04:55]} 3... Nf6 {[%clk 0:04:55.7]} 4.
Bg2 {[%clk 0:04:54.3]} 4... Be7 {[%clk 0:04:53.8]} 5. O-O {[%clk 0:04:52.9]}
5... d6 {[%clk 0:04:53.3]} 6. b3 {[%clk 0:04:49.3]} 6... O-O {[%clk 0:04:52.8]}
7. Bb2 {[%clk 0:04:48.5]} 7... Ne4 {[%clk 0:04:45.9]} 8. Nbd2 {[%clk 0:04:45.4]}
8... Nxd2 {[%clk 0:04:41.9]} 9. Qxd2 {[%clk 0:04:43.7]} 9... Bf6 {[%clk
0:04:41.8]} 10. Rfe1 {[%clk 0:04:40.7]} 10... Qe8 {[%clk 0:04:40.3]} 11. e4
{[%clk 0:04:37.2]} 11... fxe4 {[%clk 0:04:29.1]} 12. Rxe4 {[%clk 0:04:36.1]}
12... d5 {[%clk 0:04:28]} 13. Re2 {[%clk 0:04:32.5]} 13... Nc6 {[%clk
0:04:25.8]} 14. Rae1 {[%clk 0:04:31.1]} 14... a5 {[%clk 0:04:05.2]} 15. a4
{[%clk 0:04:23.4]} 15... Nb4 {[%clk 0:04:02.9]} 16. c3 {[%clk 0:04:09.4]} 16...
Nc6 {[%clk 0:03:56.7]} 17. Ba3 {[%clk 0:04:08.2]} 17... Rf7 {[%clk 0:03:53.7]}
18. Ne5 {[%clk 0:03:50.7]} 18... Nxe5 {[%clk 0:03:49.2]} 19. dxe5 {[%clk
0:03:50.6]} 19... Be7 {[%clk 0:03:42]} 20. Bxe7 {[%clk 0:03:46]} 20... Qxe7
{[%clk 0:03:39.7]} 21. f4 {[%clk 0:03:43.1]} 21... b6 {[%clk 0:03:37.8]} 22. c4
{[%clk 0:03:17.3]} 22... Ba6 {[%clk 0:03:31.8]} 23. cxd5 {[%clk 0:03:08.4]}
23... Bxe2 {[%clk 0:03:28.9]} 24. dxe6 {[%clk 0:03:04.4]} 24... Qc5+ {[%clk
0:03:21.1]} 25. Kh1 {[%clk 0:02:58.8]} 25... Re7 {[%clk 0:03:13.3]} 26. Bxa8
{[%clk 0:02:51.5]} 26... Bg4 {[%clk 0:03:01.4]} 27. Qd8+ {[%clk 0:02:45.9]}
27... Re8 {[%clk 0:02:47.2]} 28. Qxe8+ {[%clk 0:02:43.4]} 28... Qf8 {[%clk
0:02:47.1]} 29. Qxf8+ {[%clk 0:02:38.5]} 29... Kxf8 {[%clk 0:02:47]} 30. Bd5
{[%clk 0:02:32.3]} 30... Ke7 {[%clk 0:02:45.5]} 31. Rc1 {[%clk 0:02:30.8]} 31...
c5 {[%clk 0:02:40.7]} 32. Bc4 {[%clk 0:02:27.4]} 32... Bf3+ {[%clk 0:02:37.1]}
33. Kg1 {[%clk 0:02:26.7]} 33... h6 {[%clk 0:02:34.3]} 34. Kf2 {[%clk
0:02:26.1]} 34... Bg4 {[%clk 0:02:29.5]} 35. Ke3 {[%clk 0:02:20.3]} 35... g5
{[%clk 0:02:27.6]} 36. Rc2 {[%clk 0:02:18.4]} 36... gxf4+ {[%clk 0:02:25.3]} 37.
Kxf4 {[%clk 0:02:18.3]} 37... Bd1 {[%clk 0:02:20.6]} 38. Rd2 {[%clk 0:02:16.9]}
38... Bh5 {[%clk 0:02:13.4]} 39. Rd7+ {[%clk 0:02:12.2]} 39... Ke8 {[%clk
0:02:11.2]} 40. Rh7 {[%clk 0:02:05]} 40... b5 {[%clk 0:02:07.5]} 41. Bxb5+
{[%clk 0:02:03.6]} 41... Kd8 {[%clk 0:02:05.5]} 42. e7+ {[%clk 0:02:03]} 42...
Kc8 {[%clk 0:02:01.3]} 43. Rxh6 {[%clk 0:01:59.3]} 43... c4 {[%clk 0:01:58.3]}
44. bxc4 {[%clk 0:01:57.1]} 44... Kc7 {[%clk 0:01:47.1]} 45. Rxh5 {[%clk
0:01:54.5]} 45... Kb7 {[%clk 0:01:42.5]} 46. e8=Q {[%clk 0:01:52.2]} 46... Kb6
{[%clk 0:01:41]} 47. Qc6+ {[%clk 0:01:51.2]} 47... Ka7 {[%clk 0:01:39.4]} 48.
Rh7+ {[%clk 0:01:50]} 48... Kb8 {[%clk 0:01:37.9]} 49. Qe8# {[%clk 0:01:49.7]}
1-0

[Event "Live Chess"]
[Site "Chess.com"]
[Date "2024.06.01"]
[Round "-"]
[White "Duke_of_Bebington"]
[Black "Nathaniel250"]
[Result "0-1"]
[WhiteElo "1587"]
[BlackElo "1498"]
[TimeControl "300"]
[EndTime "12:22:13 PDT"]
[Termination "Nathaniel250 won on time"]

1. e4 {[%clk 0:04:58.1]} 1... c5 {[%clk 0:04:58.8]} 2. c3 {[%clk 0:04:55.4]}
2... e6 {[%clk 0:04:57.6]} 3. d4 {[%clk 0:04:53.7]} 3... cxd4 {[%clk 0:04:56.6]}
4. cxd4 {[%clk 0:04:53.6]} 4... Nc6 {[%clk 0:04:54.3]} 5. d5 {[%clk 0:04:52.5]}
5... exd5 {[%clk 0:04:53.2]} 6. exd5 {[%clk 0:04:51.9]} 6... Ne5 {[%clk
0:04:47.2]} 7. d6 {[%clk 0:04:51]} 7... Qb6 {[%clk 0:04:42.6]} 8. Nf3 {[%clk
0:03:56.7]} 8... Nxf3+ {[%clk 0:04:34]} 9. Qxf3 {[%clk 0:03:54.9]} 9... Bxd6
{[%clk 0:04:25.8]} 10. Bc4 {[%clk 0:03:53.7]} 10... Nf6 {[%clk 0:04:19.2]} 11.
O-O {[%clk 0:03:48.1]} 11... O-O {[%clk 0:04:08.9]} 12. Nc3 {[%clk 0:03:45]}
12... Qc5 {[%clk 0:03:59.2]} 13. Bb3 {[%clk 0:03:40.9]} 13... Qh5 {[%clk
0:03:52.1]} 14. Qxh5 {[%clk 0:03:32.4]} 14... Nxh5 {[%clk 0:03:52]} 15. Ne4
{[%clk 0:03:29.2]} 15... Be5 {[%clk 0:03:43.4]} 16. Rb1 {[%clk 0:03:09.3]} 16...
Nf6 {[%clk 0:03:39.9]} 17. Bc2 {[%clk 0:03:00.6]} 17... Re8 {[%clk 0:03:34]} 18.
Be3 {[%clk 0:02:51.3]} 18... Nxe4 {[%clk 0:03:31.8]} 19. Bxe4 {[%clk 0:02:49.3]}
19... Bxh2+ {[%clk 0:03:26.5]} 20. Kxh2 {[%clk 0:02:48.3]} 20... Rxe4 {[%clk
0:03:25.5]} 21. Rbc1 {[%clk 0:02:42.9]} 21... d5 {[%clk 0:03:19.6]} 22. Rc7
{[%clk 0:02:39.5]} 22... b6 {[%clk 0:02:56]} 23. Rfc1 {[%clk 0:02:35]} 23... Be6
{[%clk 0:02:52.4]} 24. a3 {[%clk 0:02:25.6]} 24... Rc4 {[%clk 0:02:48.2]} 25.
R1xc4 {[%clk 0:02:15.5]} 25... dxc4 {[%clk 0:02:48.1]} 26. Kg3 {[%clk
0:02:13.8]} 26... h6 {[%clk 0:02:31.8]} 27. Bd4 {[%clk 0:02:00.1]} 27... Rd8
{[%clk 0:01:58.4]} 28. Bc3 {[%clk 0:01:57.4]} 28... Rd7 {[%clk 0:01:51.8]} 29.
Rc8+ {[%clk 0:01:46.8]} 29... Kh7 {[%clk 0:01:50]} 30. Rb8 {[%clk 0:01:35.8]}
30... Kg6 {[%clk 0:01:39.3]} 31. Rg8 {[%clk 0:01:31]} 31... f6 {[%clk 0:01:36]}
32. Re8 {[%clk 0:01:29.3]} 32... Kf7 {[%clk 0:01:34]} 33. Ra8 {[%clk 0:01:25.5]}
33... a5 {[%clk 0:01:30.2]} 34. Rb8 {[%clk 0:01:21.8]} 34... Rd6 {[%clk
0:01:24.3]} 35. Kf3 {[%clk 0:01:15.8]} 35... Bd7 {[%clk 0:01:18.6]} 36. Rb7
{[%clk 0:01:14]} 36... Kg6 {[%clk 0:01:14.2]} 37. Rc7 {[%clk 0:01:12.7]} 37...
Bc6+ {[%clk 0:01:09.3]} 38. Ke3 {[%clk 0:01:06.8]} 38... a4 {[%clk 0:01:08.3]}
39. g3 {[%clk 0:01:03]} 39... b5 {[%clk 0:01:06.2]} 40. Re7 {[%clk 0:00:59.1]}
40... Rd3+ {[%clk 0:00:59.7]} 41. Ke2 {[%clk 0:00:56]} 41... Bf3+ {[%clk
0:00:56.1]} 42. Kf1 {[%clk 0:00:52.1]} 42... Rd1+ {[%clk 0:00:53.7]} 43. Re1
{[%clk 0:00:51.7]} 43... Rxe1+ {[%clk 0:00:52.4]} 44. Kxe1 {[%clk 0:00:51.6]}
44... Kf5 {[%clk 0:00:49.9]} 45. Kd2 {[%clk 0:00:51.1]} 45... Ke4 {[%clk
0:00:48.8]} 46. Bb4 {[%clk 0:00:47.2]} 46... f5 {[%clk 0:00:45.3]} 47. Bc3
{[%clk 0:00:45.8]} 47... g6 {[%clk 0:00:42.2]} 48. Bg7 {[%clk 0:00:44.7]} 48...
h5 {[%clk 0:00:41.4]} 49. Bh6 {[%clk 0:00:43.9]} 49... Kd4 {[%clk 0:00:33.6]}
50. Be3+ {[%clk 0:00:41.6]} 50... Kd5 {[%clk 0:00:31.9]} 51. Kc3 {[%clk
0:00:38.7]} 51... Be4 {[%clk 0:00:24.9]} 52. Kb4 {[%clk 0:00:36.9]} 52... Kc6
{[%clk 0:00:23.8]} 53. Bg5 {[%clk 0:00:35.3]} 53... Bc2 {[%clk 0:00:21.9]} 54.
Kc3 {[%clk 0:00:34.2]} 54... Bb3 {[%clk 0:00:20.4]} 55. Kd4 {[%clk 0:00:33]}
55... Bc2 {[%clk 0:00:19.2]} 56. Ke5 {[%clk 0:00:32.3]} 56... f4 {[%clk
0:00:17.5]} 57. Bxf4 {[%clk 0:00:31]} 57... Bf5 {[%clk 0:00:16.6]} 58. Kd4
{[%clk 0:00:29.7]} 58... Kd7 {[%clk 0:00:14.1]} 59. Bg5 {[%clk 0:00:28.8]} 59...
Kc6 {[%clk 0:00:13.5]} 60. Bf4 {[%clk 0:00:27.2]} 60... Be6 {[%clk 0:00:10.4]}
61. Bg5 {[%clk 0:00:25.8]} 61... Bf5 {[%clk 0:00:09.7]} 62. f4 {[%clk
0:00:24.6]} 62... Bg4 {[%clk 0:00:08.3]} 63. Bh4 {[%clk 0:00:23.5]} 63... Bf5
{[%clk 0:00:07.5]} 64. Bf6 {[%clk 0:00:22.7]} 64... Bg4 {[%clk 0:00:07.4]} 65.
Be5 {[%clk 0:00:21.8]} 65... Bf5 {[%clk 0:00:07]} 66. Kc3 {[%clk 0:00:21.2]}
66... Bg4 {[%clk 0:00:06.9]} 67. Kb4 {[%clk 0:00:20.7]} 67... Bf5 {[%clk
0:00:06.5]} 68. Ka5 {[%clk 0:00:20.1]} 68... Bg4 {[%clk 0:00:06.4]} 69. Kb4
{[%clk 0:00:19.1]} 69... Bf5 {[%clk 0:00:06.3]} 70. Kc3 {[%clk 0:00:18.2]} 70...
Bg4 {[%clk 0:00:06.2]} 71. Bg7 {[%clk 0:00:17.2]} 71... Bf5 {[%clk 0:00:06.1]}
72. Bh8 {[%clk 0:00:16.5]} 72... Bg4 {[%clk 0:00:06]} 73. Be5 {[%clk 0:00:15.7]}
73... Bf5 {[%clk 0:00:05.9]} 74. Bd4 {[%clk 0:00:14.9]} 74... Bg4 {[%clk
0:00:05.8]} 75. Bf6 {[%clk 0:00:14.1]} 75... Bf5 {[%clk 0:00:05.7]} 76. Bg7
{[%clk 0:00:13.4]} 76... Bg4 {[%clk 0:00:05.6]} 77. Bf8 {[%clk 0:00:12.9]} 77...
Bf5 {[%clk 0:00:05.5]} 78. Bh6 {[%clk 0:00:11.7]} 78... Bg4 {[%clk 0:00:05.4]}
79. Bf8 {[%clk 0:00:11.3]} 79... Bf5 {[%clk 0:00:05.3]} 80. Bb4 {[%clk
0:00:10.8]} 80... Bg4 {[%clk 0:00:05.2]} 81. Ba5 {[%clk 0:00:10.5]} 81... Bf5
{[%clk 0:00:05.1]} 82. Bd8 {[%clk 0:00:10.1]} 82... Bg4 {[%clk 0:00:05]} 83. Bf6
{[%clk 0:00:09.5]} 83... Bf5 {[%clk 0:00:04.9]} 84. Bd4 {[%clk 0:00:09.1]} 84...
h4 {[%clk 0:00:04.8]} 85. Bf2 {[%clk 0:00:08.5]} 85... hxg3 {[%clk 0:00:04.7]}
86. Bxg3 {[%clk 0:00:07.7]} 86... Be6 {[%clk 0:00:03.9]} 87. Bh4 {[%clk
0:00:07.1]} 87... Bf5 {[%clk 0:00:03.8]} 88. Bg5 {[%clk 0:00:06.8]} 88... Be6
{[%clk 0:00:03.7]} 89. f5 {[%clk 0:00:05.7]} 89... Bxf5 {[%clk 0:00:03.6]} 90.
Bf6 {[%clk 0:00:04.9]} 90... g5 {[%clk 0:00:02.9]} 91. Bxg5 {[%clk 0:00:03.3]}
91... Be4 {[%clk 0:00:02.4]} 92. Bf4 {[%clk 0:00:02.5]} 92... Bd5 {[%clk
0:00:02.3]} 93. Be3 {[%clk 0:00:01.6]} 93... Be4 {[%clk 0:00:02.2]} 94. Bd4
{[%clk 0:00:01.2]} 94... Bd5 {[%clk 0:00:02.1]} 95. Be5 {[%clk 0:00:00.6]} 95...
Be4 {[%clk 0:00:02]} 96. Bf6 {[%clk 0:00:00.2]} 96... Bd5 {[%clk 0:00:01.9]} 0-1